bitfinex-derivatives/quotes_ETHF0:USTF0_20250105
["timestamp","ask_amount","ask_price","bid_price","bid_amount"]
[1736046116176,2.15991849,3639.1,3639.0,0.8293]
[1736046117774,4.31299791,3639.1,3639.0,0.8293]
[1736046118980,2.15784592,3639.1,3639.0,0.8293]
[1736046120075,7.15784592,3639.1,3639.0,0.8293]
[1736046120875,2.15784592,3639.1,3639.0,0.8293]
[1736046124179,4.30783371,3639.1,3639.0,0.8293]
[1736046126179,5.36883371,3639.1,3639.0,0.8293]
[1736046126377,5.09400371,3639.1,3639.0,0.8293]
[1736046126978,2.94401592,3639.1,3639.0,0.8293]
[1736046127177,3.21884592,3639.1,3639.0,0.8293]
[1736046129681,1.88301592,3639.1,3639.0,0.8293]
[1736046130384,0.99688849,3639.1,3639.0,0.8293]
[1736046132887,1.27171849,3639.1,3639.0,0.8293]
[1736046135291,4.92851849,3639.1,3639.0,0.8293]
[1736046138687,4.65368849,3639.1,3639.0,0.8293]
[1736046138886,4.20468849,3639.1,3639.0,0.8293]
[1736046139390,4.47951849,3639.1,3639.0,0.8293]
[1736046142988,4.20468849,3639.1,3639.0,0.8293]
[1736046143386,4.47951849,3639.1,3639.0,0.8293]
[1736046144995,4.20468849,3639.1,3639.0,0.8293]
[1736046147190,6.35467628,3639.1,3639.0,0.8293]
[1736046147996,6.62950628,3639.1,3639.0,0.8293]
[1736046148994,6.62950628,3639.1,3639.0,1.2391]
[1736046151096,4.47951849,3639.1,3639.0,1.2391]
[1736046156702,1.27171849,3639.1,3639.0,1.2391]
[1736046156998,4.47951849,3639.1,3639.0,1.2391]
[1736046160401,7.71224648,3639.1,3639.0,1.2391]
[1736046162401,7.43741648,3639.1,3639.0,1.2391]
[1736046162702,4.22961648,3639.1,3639.0,1.2391]
[1736046163201,3.15303866,3639.1,3639.0,4.97818435]
[1736046168705,0.99688849,3639.1,3639.0,4.97818435]
[1736046168901,3.23272799,3639.2,3639.0,4.97818435]
[1736046169106,0.99688849,3639.1,3639.0,4.97818435]
[1736046170209,0.99688849,3639.1,3639.0,11.44927374]
[1736046171609,4.22961648,3639.1,3639.0,11.44927374]
[1736046174711,4.6420097,3639.1,3639.0,11.44927374]
[1736046176803,1.75912121,3639.1,3639.0,11.72411374]
[1736046177006,1.08482121,3639.1,3639.0,11.72411374]
[1736046177204,4.3170346,3639.3,3639.2,0.27482]
[1736046177399,4.3170346,3639.3,3639.2,1.27170849]
[1736046178612,4.3170346,3639.3,3639.1,0.8308]
[1736046178908,1.71760849,3639.2,3639.1,11.61538062]
[1736046180108,1.71760849,3639.2,3639.1,4.66213627]
[1736046181207,1.44278849,3639.2,3639.1,4.66213627]
[1736046182213,1.71760849,3639.2,3639.1,4.66213627]
[1736046183211,1.44278849,3639.2,3639.1,4.66213627]
[1736046183715,1.44278849,3639.2,3639.1,5.06743627]
[1736046185523,1.44278849,3639.2,3639.1,11.55551588]
[1736046186908,1.44278849,3639.2,3639.1,11.15021588]
[1736046190819,1.44278849,3639.2,3639.1,4.66213627]
[1736046193622,1.71760849,3639.2,3639.1,4.66213627]
[1736046194315,1.71760849,3639.2,3639.1,2.10183627]
[1736046195823,0.27485,3638.9,3638.6,4.32605869]
[1736046196011,4.20468849,3638.7,3638.6,4.32605869]
[1736046197319,4.47954849,3638.7,3638.6,4.32605869]
[1736046197520,4.89614849,3638.7,3638.6,4.32605869]
[1736046199724,5.3086374,3638.7,3638.6,4.32605869]
[1736046200024,0.27487,3638.5,3638.4,4.32605869]
[1736046200225,1.27175849,3638.5,3638.4,4.32605869]
[1736046201019,3.42690276,3638.5,3638.3,4.32605869]
[1736046201220,0.99688849,3638.4,3638.3,4.32605869]
[1736046203024,1.27176849,3638.4,3638.3,4.32605869]
[1736046203820,1.27176849,3638.4,3638.2,4.32605869]
[1736046204021,1.54029,3638.3,3638.2,4.32605869]
[1736046204926,1.2654,3638.3,3638.2,4.32605869]
[1736046205125,1.2654,3638.3,3638.1,4.32605869]
[1736046207025,0.99688849,3638.2,3638.1,4.32605869]
[1736046208128,0.99688849,3638.2,3637.8,0.99688849]
[1736046208129,0.99688849,3638.2,3638.0,4.32605869]
[1736046208531,1.2654,3638.3,3638.0,5.32294718]
[1736046208827,5.36294427,3638.5,3638.2,0.99688849]
[1736046209027,5.36294427,3638.5,3638.3,0.4428]
[1736046209427,5.36294427,3638.5,3638.4,1.27176849]
[1736046209732,3.2078,3638.5,3638.4,1.27176849]
[1736046210232,2.15514427,3638.6,3638.5,0.27487]
[1736046211036,1.27171849,3639.1,3638.5,0.27487]
[1736046211226,1.27171849,3639.1,3638.7,0.99688849]
[1736046211427,1.27171849,3639.1,3638.8,0.4091]
[1736046211627,1.27171849,3639.1,3638.8,0.822]
[1736046213629,0.99688849,3638.9,3638.8,0.822]
[1736046214931,0.27486,3638.7,3638.6,4.3175871]
[1736046215236,1.27174849,3638.7,3638.6,4.3175871]
[1736046215730,1.27174849,3638.7,3638.4,4.3175871]
[1736046215925,0.421,3638.6,3638.4,4.3175871]
[1736046216633,0.421,3638.6,3638.3,4.7658871]
[1736046217435,0.99688849,3638.4,3638.3,4.3175871]
[1736046218437,1.41788849,3638.6,3638.3,4.3175871]
[1736046221842,0.99688849,3638.4,3638.3,4.3175871]
[1736046223540,0.99688849,3638.4,3638.2,4.3175871]
[1736046227446,0.4365,3638.5,3638.2,4.5924771]
[1736046227649,0.4365,3638.5,3638.3,0.99688849]
[1736046228145,0.4365,3638.5,3638.3,1.42618849]
[1736046229341,0.4365,3638.5,3638.4,4.3175871]
[1736046233449,0.4365,3638.5,3638.3,4.3175871]
[1736046233649,0.99688849,3638.4,3638.3,4.3175871]
[1736046233852,0.98799183,3638.4,3638.3,4.3175871]
[1736046235950,0.98799183,3638.4,3638.3,10.27394931]
[1736046240056,3.1431361,3638.4,3638.3,10.27394931]
[1736046241355,0.98799183,3638.4,3638.3,10.27394931]
[1736046242255,1.26287183,3638.4,3638.3,10.27394931]
[1736046242457,3.4180161,3638.4,3638.3,10.27394931]
[1736046243059,3.1431361,3638.4,3638.3,10.27394931]
[1736046244246,4.22346042,3638.4,3638.3,4.32522787]
[1736046245852,0.98799183,3638.4,3638.3,6.48807961]
[1736046247760,3.14544978,3638.4,3638.3,10.27593205]
[1736046249654,2.15745795,3638.4,3638.3,10.27593205]
[1736046252765,3.42922644,3638.4,3638.3,10.27593205]
[1736046253659,6.63702644,3638.4,3638.3,10.27593205]
[1736046254259,6.63702644,3638.4,3638.2,4.32576173]
[1736046254260,4.89206902,3638.4,3638.2,4.32576173]
[1736046254460,0.4303,3638.3,3638.2,4.32576173]
[1736046256964,2.58817741,3638.3,3638.2,6.48807961]
[1736046257168,2.58817741,3638.3,3638.2,10.27643374]
[1736046257364,2.86306741,3638.3,3638.2,10.27643374]
[1736046258764,0.70519,3638.3,3638.2,3.78835413]
[1736046259981,0.70519,3638.3,3638.2,10.27643374]
[1736046260574,0.4303,3638.3,3638.2,10.27643374]
[1736046260777,6.4444857,3638.4,3638.2,10.27643374]
[1736046260972,3.2366857,3638.4,3638.3,1.27177849]
[1736046261172,3.2366857,3638.4,3638.3,1.70077849]
[1736046261372,4.73389811,3638.6,3638.3,1.70077849]
[1736046262173,4.73389811,3638.6,3638.3,1.42588849]
[1736046263072,2.58029352,3638.6,3638.4,12.43912695]
[1736046263977,2.58029352,3638.6,3638.5,3.78835413]
[1736046267774,2.85516352,3638.6,3638.5,3.78835413]
[1736046267974,2.58029352,3638.6,3638.5,3.78835413]
[1736046268674,2.85516352,3638.6,3638.5,3.78835413]
[1736046269081,2.85516352,3638.6,3638.5,10.27704533]
[1736046270480,2.58029352,3638.6,3638.5,10.27704533]
[1736046274785,2.85516352,3638.6,3638.5,10.27704533]
[1736046276780,2.58029352,3638.6,3638.5,10.27704533]
[1736046282289,2.85516352,3638.6,3638.5,10.27704533]
[1736046283887,2.85516352,3638.6,3638.3,8.65077282]
[1736046283888,0.27488,3638.5,3638.3,4.32523419]
[1736046284082,0.99688849,3638.4,3638.3,4.32523419]
[1736046286284,1.27176849,3638.4,3638.3,4.32523419]
[1736046290582,0.99688849,3638.4,3638.3,4.32523419]
[1736046290989,1.27176849,3638.4,3638.3,4.32523419]
[1736046292696,0.99688849,3638.4,3638.3,4.32523419]
[1736046293696,3.1560941,3638.4,3638.3,3.79007345]
[1736046294794,0.99688849,3638.4,3638.2,6.4886912]
[1736046295490,3.23829992,3638.5,3638.2,6.4886912]
[1736046295693,3.23829992,3638.5,3638.3,0.69319]
[1736046296401,3.5772947,3638.6,3638.4,6.4886912]
[1736046297902,3.5772947,3638.6,3638.5,3.78974764]
[1736046299206,4.65618841,3638.6,3638.5,4.32452474]
[1736046303106,3.65929992,3638.6,3638.5,4.32452474]
[1736046303305,3.23829992,3638.6,3638.5,4.32452474]
[1736046303700,3.65076171,3638.6,3638.5,4.32452474]
[1736046304309,3.65076171,3638.6,3638.5,4.75952474]
[1736046304603,3.65076171,3638.6,3638.5,5.03439474]
[1736046305009,2.15980962,3638.7,3638.5,10.98869648]
[1736046305715,0.99688849,3638.6,3638.5,10.98869648]
[1736046306512,0.99688849,3638.6,3638.5,10.71382648]
[1736046306810,0.99688849,3638.6,3638.5,0.435]
[1736046308409,3.15669811,3638.6,3638.5,4.22539773]
[1736046308609,3.15669811,3638.6,3638.5,3.79039773]
[1736046308806,3.43156811,3638.6,3638.5,3.79039773]
[1736046309311,3.15669811,3638.6,3638.5,3.79039773]
[1736046309712,1.40936478,3638.6,3638.5,4.32568113]
[1736046310213,1.68423478,3638.6,3638.5,4.32568113]
[1736046310409,1.40936478,3638.6,3638.5,4.32568113]
[1736046310714,1.68423478,3638.6,3638.5,4.52168113]
[1736046311105,1.27175849,3638.6,3638.5,0.196]
[1736046312310,5.99713289,3638.6,3638.5,0.196]
[1736046313507,1.68423478,3638.6,3638.5,0.196]
[1736046313711,4.89203478,3638.6,3638.5,0.196]
[1736046313911,5.95203478,3638.6,3638.5,0.196]
[1736046317818,10.26493289,3638.6,3638.5,0.196]
[1736046319321,7.05713289,3638.6,3638.5,0.196]
[1736046319521,10.26493289,3638.6,3638.5,0.196]
[1736046321321,10.26493289,3638.6,3638.5,0.3951]
[1736046323222,10.26493289,3638.6,3638.5,0.4351]
[1736046325029,7.05713289,3638.6,3638.5,0.4351]
[1736046325327,10.26493289,3638.6,3638.5,0.4351]
[1736046329632,9.2680444,3638.6,3638.5,0.4351]
[1736046329832,10.26493289,3638.6,3638.5,0.4351]
[1736046337936,7.9331744,3638.6,3638.5,0.70997]
[1736046339532,7.9331744,3638.6,3638.5,13.15116599]
[1736046339533,3.2078,3638.6,3638.5,13.15116599]
[1736046340536,2.15869452,3638.8,3638.5,12.87629599]
[1736046340730,2.15869452,3638.8,3638.6,1.10576]
[1736046341130,2.15869452,3638.8,3638.7,0.4274]
[1736046342039,2.15869452,3638.8,3638.7,11.0996793]
[1736046342437,2.60009452,3638.8,3638.7,11.0996793]
[1736046343335,2.60009452,3638.8,3638.7,10.6722793]
[1736046343536,6.08274452,3638.8,3638.7,10.6722793]
[1736046343838,7.57454287,3638.8,3638.7,0.395]
[1736046344731,7.29969287,3638.8,3638.7,0.395]
[1736046345137,4.06165109,3638.8,3638.7,0.395]
[1736046347438,3.6492,3638.8,3638.7,0.395]
[1736046347631,3.6492,3638.8,3638.7,4.7195167]
[1736046350030,6.88670688,3638.8,3638.7,0.395]
[1736046351732,7.29916055,3638.8,3638.7,0.395]
[1736046354738,7.29916055,3638.8,3638.7,0.4352]
[1736046356539,7.57401055,3638.8,3638.7,0.4352]
[1736046357742,4.33650367,3638.8,3638.7,0.4352]
[1736046365247,8.64940178,3638.8,3638.7,0.4352]
[1736046368650,9.64629027,3638.8,3638.7,0.4352]
[1736046370952,9.7717992,3638.8,3638.7,0.4352]
[1736046372054,9.99162368,3638.8,3638.7,0.4352]
[1736046375961,15.38521438,3638.8,3638.7,0.4352]
[1736046378454,0.27491,3638.1,3638.0,4.3245167]
[1736046378658,6.53648698,3638.1,3638.0,4.3245167]
[1736046379057,6.53648698,3638.1,3638.0,2.4359167]
[1736046379359,6.53648698,3638.1,3638.0,1.8580167]
[1736046380560,11.11243769,3638.1,3636.9,6.92765613]
[1736046380867,0.99688849,3637.0,3636.9,6.92765613]
[1736046382157,0.99688849,3637.0,3636.9,0.4408]
[1736046389666,1.27187849,3637.0,3636.9,0.4408]
[1736046390467,1.27187849,3637.0,3636.8,0.4147]
[1736046390468,1.70557849,3637.0,3636.8,0.4147]
[1736046391168,1.27187849,3637.0,3636.8,0.4147]
[1736046391573,0.99688849,3637.0,3636.8,0.4147]
[1736046391873,0.275,3636.9,3636.8,0.4147]
[1736046394678,0.99688849,3637.0,3636.6,0.4206]
[1736046394883,4.47969849,3636.7,3636.6,0.4206]
[1736046395084,5.54069849,3636.7,3636.6,0.4206]
[1736046395282,5.95749849,3636.7,3636.6,0.4206]
[1736046395681,6.95438698,3636.7,3636.6,0.4206]
[1736046395877,0.27504,3636.3,3636.0,0.8515]
[1736046396185,0.27504,3636.3,3636.1,0.4243]
[1736046396779,5.68248849,3636.7,3636.1,0.4243]
[1736046397082,0.27503,3636.5,3636.1,0.4243]
[1736046397285,0.99688849,3636.2,3636.1,0.4243]
[1736046398079,0.99688849,3636.4,3636.1,1.69624849]
[1736046398979,0.99688849,3636.4,3636.1,1.42118849]
[1736046399178,0.99688849,3636.6,3636.1,1.42118849]
[1736046399478,0.99688849,3636.6,3636.3,0.27504]
[1736046401681,0.99688849,3636.4,3636.1,0.4243]
[1736046401986,0.99688849,3636.4,3636.2,0.27505]
[1736046402891,1.27191849,3636.4,3636.1,0.4243]
[1736046403389,0.99688849,3636.2,3636.1,0.4243]
[1736046404195,0.99688849,3636.4,3636.1,0.4243]
[1736046404488,1.27192849,3636.4,3636.1,0.4243]
[1736046405093,0.99688849,3636.4,3636.1,0.4243]
[1736046406190,0.99688849,3636.4,3636.1,0.69936]
[1736046406394,0.99688849,3636.4,3636.1,0.4243]
[1736046406698,0.99688849,3636.4,3636.1,0.69936]
[1736046406995,0.99688849,3636.4,3636.1,0.4243]
[1736046409296,0.99688849,3636.2,3636.1,0.4243]
[1736046412197,0.99688849,3636.4,3636.1,0.69936]
[1736046412700,3.2078,3636.7,3636.4,0.27503]
[1736046412897,3.2078,3636.7,3636.5,1.14962]
[1736046413994,0.99688849,3636.6,3636.5,0.8746]
[1736046421609,0.99688849,3636.6,3636.2,0.27505]
[1736046421803,0.99688849,3636.4,3636.3,0.4093]
[1736046422001,1.27192849,3636.4,3636.1,0.423]
[1736046422203,0.99688849,3636.2,3636.1,0.423]
[1736046423302,1.68121849,3636.4,3636.1,0.423]
[1736046423508,3.4219487,3658.3,3636.1,0.423]
[1736046423509,2.15325898,3636.8,3636.3,3.2078]
[1736046423697,2.15325898,3636.8,3636.7,1.27189849]
[1736046424809,4.12308848,3637.0,3636.7,1.27189849]
[1736046424810,0.8932,3637.0,3636.7,1.27189849]
[1736046425006,0.8932,3637.0,3636.8,0.4278]
[1736046425308,0.8932,3637.0,3636.8,0.8761]
[1736046426002,3.04645898,3637.0,3636.8,0.8761]
[1736046426799,3.04645898,3637.0,3636.9,0.275]
[1736046427509,2.60175898,3637.0,3636.9,0.275]
[1736046428907,0.4485,3637.0,3636.9,0.275]
[1736046437205,0.4485,3637.0,3636.8,1.1511]
[1736046438009,0.99688849,3636.9,3636.8,1.1511]
[1736046443613,0.99688849,3636.9,3636.8,4.87861488]
[1736046446619,0.99688849,3636.9,3636.8,1.1511]
[1736046449018,0.99688849,3636.9,3636.8,4.87908125]
[1736046450119,0.99688849,3636.9,3636.8,4.60408125]
[1736046450619,0.99688849,3636.9,3636.8,4.87908125]
[1736046453217,0.99688849,3636.9,3636.8,4.60408125]
[1736046454112,0.99688849,3636.9,3636.8,3.72798125]
[1736046455714,0.99688849,3636.9,3636.8,10.21483738]
[1736046457427,3.15014747,3636.9,3636.8,10.21483738]
[1736046458722,3.42514747,3636.9,3636.8,10.21483738]
[1736046460929,3.42514747,3636.9,3636.6,8.65077282]
[1736046460930,0.27501,3636.7,3636.5,9.69465613]
[1736046461228,0.99688849,3636.6,3636.5,9.69465613]
[1736046461429,0.99688849,3636.6,3636.5,6.48685613]
[1736046462021,3.15215275,3636.6,3636.5,6.48685613]
[1736046462226,3.15215275,3636.6,3636.5,10.21839546]
[1736046463427,0.99688849,3636.6,3636.5,3.73153933]
[1736046465327,3.23289639,3636.7,3636.5,3.73153933]
[1736046465527,0.99688849,3636.6,3636.5,3.73153933]
[1736046466036,3.1518189,3636.6,3636.5,10.21839546]
[1736046467228,0.99688849,3636.6,3636.5,10.21839546]
[1736046468433,0.99688849,3636.6,3636.5,3.73153933]
[1736046469234,2.15493041,3636.7,3636.5,3.73153933]
[1736046469432,2.15493041,3636.7,3636.5,4.00655933]
[1736046470533,2.15493041,3636.7,3636.5,3.73153933]
[1736046471127,2.15493041,3636.7,3636.6,10.22352121]
[1736046482239,2.42994041,3636.7,3636.6,10.22352121]
[1736046482436,2.15493041,3636.7,3636.6,10.22352121]
[1736046484440,2.42994041,3636.7,3636.6,10.22352121]
[1736046485242,2.15493041,3636.7,3636.6,10.22352121]
[1736046487844,2.42994041,3636.7,3636.6,10.22352121]
[1736046488939,0.27501,3636.7,3636.6,10.22352121]
[1736046497653,3.50790639,3636.7,3636.6,10.22352121]
[1736046503659,3.92058232,3636.7,3636.6,10.22352121]
[1736046504065,3.64557232,3636.7,3636.6,10.22352121]
[1736046504855,3.92058232,3636.7,3636.6,10.22352121]
[1736046505057,3.92058232,3636.7,3636.6,3.73153933]
[1736046511666,3.64557232,3636.7,3636.6,3.73153933]
[1736046512769,0.41267593,3636.7,3636.6,3.73153933]
[1736046513960,2.52697442,3636.8,3636.6,3.73153933]
[1736046514461,2.52697442,3636.8,3636.7,0.4418]
[1736046514865,2.11687442,3636.8,3636.7,0.4418]
[1736046515362,2.11687442,3636.8,3636.7,10.67136795]
[1736046515363,1.70419849,3636.8,3636.7,10.67136795]
[1736046515563,2.76519849,3636.8,3636.7,10.67136795]
[1736046517062,3.17786836,3636.8,3636.7,10.67136795]
[1736046517368,3.17786836,3636.8,3636.7,10.22956795]
[1736046527671,4.17475685,3636.8,3636.7,10.22956795]
[1736046528375,8.48127482,3636.8,3636.7,10.22956795]
[1736046529672,8.39387212,3636.8,3636.3,4.33083101]
[1736046529875,3.48283,3636.4,3636.3,4.33083101]
[1736046530375,4.37753,3636.4,3636.3,4.33083101]
[1736046530970,4.79019987,3636.4,3636.3,4.33083101]
[1736046532273,0.27504,3636.3,3636.2,4.73933101]
[1736046532875,0.27504,3636.3,3636.2,4.33083101]
[1736046533569,3.91827496,3636.3,3636.2,4.33083101]
[1736046534472,4.91516345,3636.3,3636.2,4.33083101]
[1736046535073,4.50249358,3636.3,3636.2,4.33083101]
[1736046538279,1.27192849,3636.3,3636.2,4.33083101]
[1736046539280,6.88786509,3636.4,3636.2,4.33083101]
[1736046539581,0.99688849,3636.3,3636.2,4.33083101]
[1736046540882,0.99688849,3636.3,3636.2,3.72901278]
[1736046544687,1.27192849,3636.3,3636.2,3.72901278]
[1736046544988,0.99688849,3636.3,3636.2,3.72901278]
[1736046545178,0.99688849,3636.3,3636.2,10.21679832]
[1736046549784,5.36040559,3636.5,3636.2,10.21679832]
[1736046549785,6.35729408,3636.5,3636.2,10.21679832]
[1736046551283,4.20468849,3636.5,3636.4,4.32518537]
[1736046551688,4.20468849,3636.5,3636.4,5.18878537]
[1736046551978,0.99688849,3636.5,3636.4,5.18878537]
[1736046552185,1.27191849,3636.5,3636.4,5.18878537]
[1736046553187,1.27191849,3636.5,3636.4,4.32518537]
[1736046553383,2.14921849,3636.5,3636.4,4.32518537]
[1736046553784,4.30182408,3636.5,3636.4,4.32518537]
[1736046554885,3.85412408,3636.5,3636.4,4.32518537]
[1736046556484,3.42452408,3636.5,3636.4,4.32518537]
[1736046557489,3.14949408,3636.5,3636.4,4.32518537]
[1736046558187,3.42452408,3636.5,3636.4,4.32518537]
[1736046563886,0.27503,3636.4,3636.3,7.32488554]
[1736046564294,3.14949408,3636.5,3636.3,8.32177403]
[1736046564295,2.15260559,3636.5,3636.3,8.32177403]
[1736046565089,2.15260559,3636.5,3636.3,11.05506441]
[1736046565498,3.14949408,3636.5,3636.3,11.05506441]
[1736046566797,1.27191849,3636.5,3636.4,10.21796441]
[1736046567897,0.99688849,3636.5,3636.4,10.21796441]
[1736046570892,2.42762559,3636.6,3636.4,10.21796441]
[1736046571988,0.27502,3636.6,3636.5,10.21796441]
[1736046572997,3.14949408,3636.7,3636.5,10.21796441]
[1736046574102,3.42450408,3636.7,3636.5,10.21796441]
[1736046574504,3.42450408,3636.7,3636.6,10.21796441]
[1736046576501,3.14949408,3636.7,3636.6,10.21796441]
[1736046576903,2.15260559,3636.7,3636.6,10.21796441]
[1736046577105,0.26660559,3636.7,3636.6,13.70078441]
[1736046577302,3.23056509,3636.9,3636.8,0.275]
[1736046577603,3.23056509,3636.9,3636.8,1.27188849]
[1736046578501,0.27496,3637.4,3636.9,0.27499]
[1736046578704,0.27496,3637.4,3637.1,0.99688849]
[1736046579105,0.27497,3637.3,3637.2,0.4269]
[1736046579308,0.4275,3637.5,3637.2,0.4269]
[1736046579603,0.27496,3637.4,3637.3,6.48414689]
[1736046581004,0.27496,3637.4,3637.3,10.21432576]
[1736046582098,0.27496,3637.4,3637.3,3.73017887]
[1736046583308,1.27184849,3637.4,3637.3,3.73017887]
[1736046583706,1.27184849,3637.4,3637.3,4.31844808]
[1736046589113,1.27184849,3637.4,3637.0,4.31844808]
[1736046589315,0.99688849,3637.2,3637.0,4.31844808]
[1736046589710,0.4371,3637.1,3637.0,4.31844808]
[1736046592311,0.4371,3637.1,3637.0,4.59343808]
[1736046594411,0.4371,3637.1,3637.0,4.31844808]
[1736046594715,0.4371,3637.1,3637.0,4.59343808]
[1736046595506,0.4371,3637.1,3637.0,4.31844808]
[1736046595819,0.4371,3637.1,3637.0,4.59343808]
[1736046604719,0.4371,3637.1,3637.0,0.27499]
[1736046605925,0.4371,3637.1,3637.0,4.04988059]
[1736046611225,0.4371,3637.1,3637.0,10.53402748]
[1736046613037,0.8756,3637.3,3637.2,0.27497]
[1736046614332,0.8756,3637.3,3637.2,4.59550545]
[1736046614535,0.4444,3637.3,3637.2,4.59550545]
[1736046617739,0.4444,3637.3,3637.2,4.05537234]
[1736046620740,0.4444,3637.3,3637.2,10.53951923]
[1736046622242,0.4444,3637.3,3637.2,4.05537234]
[1736046633060,3.23056509,3637.4,3637.3,0.27497]
[1736046633259,3.23056509,3637.4,3637.3,4.47965849]
[1736046633459,3.23056509,3637.4,3637.3,4.90895849]
[1736046634365,4.30867889,3637.6,3637.3,4.90895849]
[1736046634366,3.23056509,3637.6,3637.3,15.98789891]
[1736046634658,3.23056509,3637.6,3637.5,1.27183849]
[1736046635753,3.23056509,3637.7,3637.5,13.43631591]
[1736046635950,3.23056509,3637.7,3637.6,0.27494]
[1736046636960,6.43836509,3637.7,3637.5,13.71126591]
[1736046637154,6.43836509,3637.7,3637.6,4.05534234]
[1736046637363,3.2078,3637.7,3637.6,4.05534234]
[1736046638464,6.43836509,3637.7,3637.6,10.54825596]
[1736046640859,3.2078,3637.7,3637.6,10.54825596]
[1736046641763,3.2078,3637.7,3637.6,10.27331596]
[1736046645268,3.23056509,3637.8,3637.6,10.27331596]
[1736046645770,3.23056509,3637.8,3637.7,0.447]
[1736046646467,3.64311508,3637.8,3637.7,0.447]
[1736046647975,3.64311508,3637.8,3637.7,4.23114854]
[1736046648767,3.64311508,3637.8,3637.7,5.22803703]
[1736046649374,3.64311508,3637.8,3637.7,5.77063208]
[1736046650574,3.50548509,3637.9,3637.7,7.93680211]
[1736046650870,4.50237358,3637.9,3637.7,6.93991362]
[1736046652064,4.50237358,3637.9,3637.8,4.32620379]
[1736046654479,4.22745358,3637.9,3637.8,4.32620379]
[1736046654777,4.50237358,3637.9,3637.8,4.32620379]
[1736046655878,0.99688849,3637.9,3637.8,4.32620379]
[1736046656073,1.27180849,3637.9,3637.8,4.32620379]
[1736046657379,7.29376509,3638.0,3637.8,4.32620379]
[1736046657380,3.67576509,3638.0,3637.8,4.32620379]
[1736046657575,3.23056509,3638.0,3637.9,0.99688849]
[1736046657772,3.23056509,3638.0,3637.9,1.41868849]
[1736046657978,3.23056509,3638.0,3637.9,1.69360849]
[1736046658482,3.23056509,3638.2,3637.9,11.96884365]
[1736046658678,3.23056509,3638.2,3638.1,0.99688849]
[1736046659775,3.50546509,3638.2,3638.1,0.99688849]
[1736046660384,0.2749,3638.2,3638.1,10.27523516]
[1736046660578,1.27178849,3638.2,3638.1,10.27523516]
[1736046661592,1.27178849,3638.2,3638.1,3.78232154]
[1736046664497,1.27178849,3638.2,3638.0,4.32163061]
[1736046665995,1.27178849,3638.2,3638.1,4.32163061]
[1736046665996,0.99688849,3638.2,3638.1,4.32163061]
[1736046666397,3.56928127,3638.3,3638.1,4.32163061]
[1736046666892,3.56928127,3638.3,3638.1,4.73763061]
[1736046667096,0.2749,3638.2,3638.1,4.73763061]
[1736046667990,3.29439127,3638.3,3638.1,4.73763061]
[1736046667991,3.56928127,3638.3,3638.1,4.73763061]
[1736046668191,4.56616976,3638.3,3638.1,4.73763061]
[1736046668791,4.29127976,3638.3,3638.1,4.73763061]
[1736046668996,3.29439127,3638.3,3638.1,4.73763061]
[1736046670091,3.56928127,3638.3,3638.1,4.73763061]
[1736046670690,3.12598127,3638.3,3638.1,4.73763061]
[1736046672193,0.2749,3638.2,3638.1,4.73763061]
[1736046672390,0.7115,3638.2,3638.1,4.73763061]
[1736046675594,0.7115,3638.2,3638.1,4.32163061]
[1736046675799,1.1555,3638.2,3638.1,4.32163061]
[1736046676701,0.8806,3638.2,3638.1,4.32163061]
[1736046677895,0.4366,3638.2,3638.1,4.32163061]
[1736046678402,0.4366,3638.2,3638.0,6.91301362]
[1736046679595,3.84797976,3638.3,3638.0,6.91301362]
[1736046679998,0.4126,3638.5,3638.1,4.77591002]
[1736046680199,6.43836509,3638.6,3638.4,0.27488]
[1736046680400,6.43836509,3638.6,3638.5,0.8689]
[1736046680599,3.23056509,3638.6,3638.5,0.8689]
[1736046681406,2.12424849,3638.8,3638.5,0.8689]
[1736046682307,2.12424849,3638.8,3638.5,5.18925507]
[1736046684006,1.84938849,3638.8,3638.5,1.86578849]
[1736046685209,1.84938849,3638.8,3638.5,6.18614356]
[1736046686102,0.8525,3638.8,3638.5,6.46101356]
[1736046686907,0.4457,3638.8,3638.6,0.27486]
[1736046687809,0.4457,3638.8,3638.6,4.59521507]
[1736046689211,5.06288849,3639.0,3638.6,4.59521507]
[1736046689399,4.65118849,3639.0,3638.7,1.27174849]
[1736046689709,4.20468849,3639.0,3638.7,1.27174849]
[1736046690507,4.20468849,3639.0,3638.7,0.99688849]
[1736046695809,0.99688849,3639.0,3638.7,0.99688849]
[1736046700413,2.83361146,3639.1,3638.7,0.99688849]
[1736046702115,2.83361146,3639.1,3638.7,1.27174849]
[1736046702706,2.83361146,3639.1,3638.7,5.31724356]
[1736046702904,2.55878146,3639.1,3638.9,0.99688849]
[1736046703110,2.83361146,3639.1,3638.9,0.99688849]
[1736046703310,2.83361146,3639.1,3639.0,0.4144]
[1736046705219,2.55878146,3639.1,3639.0,0.4144]
[1736046705519,2.83361146,3639.1,3639.0,0.4144]
[1736046705918,0.68093,3639.1,3639.0,0.4144]
[1736046706424,0.68093,3639.1,3638.9,0.99688849]
[1736046706614,0.4061,3639.1,3638.9,0.99688849]
[1736046708918,0.68093,3639.1,3638.9,0.99688849]
[1736046712415,0.4061,3639.1,3638.9,0.99688849]
[1736046713422,0.27484,3639.0,3638.9,0.99688849]
[1736046713818,0.4061,3639.1,3638.9,0.99688849]
[1736046714019,0.27484,3638.9,3638.8,4.32035507]
[1736046714523,0.69474,3638.9,3638.8,4.32035507]
[1736046717026,2.84742146,3638.9,3638.7,5.31724356]
[1736046717227,0.4178,3638.8,3638.7,5.31724356]
[1736046717626,0.69265,3638.8,3638.7,5.31724356]
[1736046718321,0.69265,3638.8,3638.7,4.32035507]
[1736046718522,0.4178,3638.8,3638.7,4.32035507]
[1736046718924,0.69265,3638.8,3638.7,4.32035507]
[1736046719521,0.69265,3638.8,3638.7,10.27281883]
[1736046719918,2.15268146,3639.0,3638.8,0.27485]
[1736046720221,2.15268146,3639.0,3638.9,0.99688849]
[1736046721028,2.99948146,3639.1,3638.9,5.31921698]
[1736046721533,2.99948146,3639.1,3639.0,0.4457]
[1736046722335,2.99948146,3639.1,3639.0,4.76802849]
[1736046723935,0.8468,3639.1,3639.0,4.76802849]
[1736046725336,4.07736509,3639.1,3639.0,4.22810279]
[1736046726843,4.48975786,3639.1,3639.0,4.22810279]
[1736046728343,4.48975786,3639.1,3639.0,10.72101641]
[1736046731048,1.25919277,3639.1,3639.0,10.72101641]
[1736046732349,0.41239277,3639.1,3639.0,10.99585641]
[1736046732546,4.30867889,3639.2,3639.0,10.72101641]
[1736046733545,3.64948052,3639.2,3639.1,10.27531641]
[1736046736543,3.64948052,3639.2,3639.1,11.5470349]
[1736046736951,3.23708775,3639.3,3639.1,5.05412128]
[1736046737445,3.23708775,3639.3,3639.2,0.27482]
[1736046738741,2.15726295,3639.4,3639.2,12.71624787]